{"text_format":"1","workbook":"xlsx","n_sheets":2,"sheets":["Отчёт","данные"],"not_rendered":{"charts":0,"images":5,"macros":1,"external_links":1,"defined_names":14,"comments":0,"pivot_tables":0},"unopened":[],"bounds":{"document_bytes":16777216,"sheet_cells":100000,"rows_first":2000,"rows_last":500,"rows_between":2000,"halvings":0,"cell_chars":16384,"cell_head_chars":4096},"cells_cut":0,"cells_raw":0,"read":"whole","date_system":"1900"}

{"sheet":"Отчёт","index":0,"n_rows":32,"n_cols":16,"rows_kept":32,"cut":false,"hidden":false,"merged":[[0,3,0,4]]}
[null,null,null,"Ежедневный отчтёт выполненных работ",null,null,null,null,null,null,null,null,null,null,"Отчётная дата:","2017-08-15"]
[null,null,null,null,null,null,null,null,null,null,null,null,null,null,"Смена","День"]
[null,null,null,null,null,null,null,null,null,null,null,null,"Петров",null,"Шифр ответственного",{"$f":"VLOOKUP(M3,данные!AK5:AL82,2,)","v":"2,100"}]
["Заявка/Доп. Работы/РКЦ","Наименование объекта","Наименование позиции","Описание СМР","Ед. изм.","ID РКЦ","Количество по РКЦ","Норма час по РКЦ"," Выполнено за смену","Часы по норме","Отработанны часы за смену","Разница часов","Простой ч","ФИО работника","Специальность","Примечание (описание простоя/ работы по заявке/ др.)"]
[]
["Проектные работы","АБК (пожаротушение хладогеновое)","Монтаж запорной арматуры","Заглушка 32х24 АПЭ21","шт",{"$f":"IF(A6=\"Проектные работы\",INDEX(данные!AI$5:AI$468,MATCH(CONCATENATE(B6,C6,D6,E6),CONCATENATE(данные!AA$5:AA$468,данные!AB$5:AB$468,данные!AC$5:AC$468,данные!AD$5:AD$468),0),1),\"—\")","v":181},{"$f":"IF(A6=\"Проектные работы\",INDEX(данные!AF$5:AF$468,MATCH(F6,данные!AI$5:AI$468,0),1),\"—\")","v":2},{"$f":"IF(A6=\"Проектные работы\",INDEX(данные!AG$5:AG$468,MATCH(F6,данные!AI$5:AI$468,0),1),IF(OR(A6=\"Заявка\",A6=\"Доп работы\"),1,\"—\"))","v":0.75},null,{"$f":"IFERROR(I6*H6,0)","v":0},null,{"$f":"J6-K6+M6","v":0}]
[null,null,null,null,null,null,null,null,null,0,null,{"$f":"J7-K7+M7","v":0}]
[null,null,null,null,null,null,null,null,null,0,null,0]
[null,null,null,null,null,null,null,null,null,0,null,0]
[null,null,null,null,null,null,null,null,null,0,null,0]
[null,null,null,null,null,null,null,null,null,0,null,0]
[null,null,null,null,null,null,null,null,null,0,null,0]
[null,null,null,null,null,null,null,null,null,0,null,0]
[null,null,null,null,null,null,null,null,null,0,null,0]
[null,null,null,null,null,null,null,null,null,0,null,0]
[null,null,null,null,null,null,null,null,null,0,null,0]
[null,null,null,null,null,null,null,null,null,0,null,0]
[null,null,null,null,null,null,null,null,null,0,null,0]
[null,null,null,null,null,null,null,null,null,0,null,0]
[null,null,null,null,null,null,null,null,null,0,null,0]
[null,null,null,null,null,null,null,null,null,0,null,0]
[null,null,null,null,null,null,null,null,null,0,null,0]
[null,null,null,null,null,null,null,null,null,0,null,0]
[null,null,null,null,null,null,null,null,null,0,null,0]
[null,null,null,null,null,null,null,null,null,0,null,0]
[null,null,null,null,null,null,null,null,null,0,null,0]
[null,null,null,null,null,null,null,null,null,0,null,0]
[null,null,null,null,null,null,null,null,null,0,null,0]
[null,null,null,null,null,null,null,null,null,0,null,0]
[null,null,null,null,null,null,null,null,null,0,null,0]
[null,null,null,null,null,null,null,null,null,0,null,0]
[null,"Подпись ответственного:____________________",null,null,null,null,null,null,null,{"$f":"SUM(J6:J31)","v":0},{"$f":"SUM(K6:K31)","v":0},{"$f":"SUM(L6:L31)","v":0},{"$f":"SUM(M6:M31)","v":0}]

{"sheet":"данные","index":1,"n_rows":31,"n_cols":38,"rows_kept":31,"cut":false,"hidden":false,"merged":[]}
["имя файла",{"$f":"CELL(\"filename\",A1)","v":"d:\\Users\\RychkovEA\\Desktop\\[форма отчёта.xlsm]данные"},"2+","Объект по ГП","Позиция по проекту",null,"3+",null,"Наименование отправочного элемента","4+",null,"Отправочная марка",null,null,null,null,null,null,null,null,null,null,null,null,null,null,"_1_Уровень","_2_Уровень","_3_Уровень","_4_Уровень"]
["имя листа",{"$f":"MID(B1,SEARCH(\"]\",B1)+1,32)","v":"данные"},null,{"$f":"\"D5:D\"&D3","v":"D5:D6"},{"$f":"\"E5:E\"&E3","v":"E5:E11"},{"$f":"\"F5:F\"&D3","v":"F5:F6"},{"$f":"\"G5:G\"&G3","v":"G5:G31"},{"$f":"\"H5:H\"&E3","v":"H5:H11"},{"$f":"\"I5:I\"&I3","v":"I5:I31"},{"$f":"\"J5:J\"&J3","v":"J5:J31"},{"$f":"\"K5:K\"&I3","v":"K5:K31"},{"$f":"\"L5:L\"&L3","v":"L5:L31"},null,null,null,null,null,null,null,null,null,null,null,null,null,null,{"$f":"MATCH(REPT(CHAR(255),5),AA5:AA19961,1)+4","v":31},null,null,"столбцы до AD не перемещать!"]
["списки",null,null,{"$f":"MATCH(REPT(CHAR(255),5),D5:D19993,1)+4","v":6},{"$f":"MATCH(REPT(CHAR(255),5),E5:E19993,1)+4","v":11},null,{"$f":"MATCH(REPT(CHAR(255),5),G5:G19993,1)+4","v":31},null,{"$f":"MATCH(REPT(CHAR(255),5),I5:I19993,1)+4","v":31},{"$f":"MATCH(REPT(CHAR(255),5),J5:J19993,1)+4","v":31},null,{"$f":"MATCH(REPT(CHAR(255),5),L5:L19993,1)+4","v":31},null,null,null,null,null,null,null,null,null,null,null,null,null,1,2,3,4,5,null,null,10]
["Объект строительства",{"$f":"\"'\"&B2&\"'!\"&D2","v":"'данные'!D5:D6"},null,1,2,null,null,null,3,null,null,4,null,null,null,null,null,null,null,null,null,null,null,null,null,"ВПР","Объект по ГП","Позиция по проекту","Наименование отправочного элемента","Отправочная марка",null,"кол-во","норма час","всего норма часов","ID РКЦ"]
[null,null,"АБК (пожаротушение хладогеновое)||Испытания трубопровода","АБК (пожаротушение хладогеновое)","Испытания трубопровода","E5:E6","АБК (пожаротушение хладогеновое)||Испытания трубопровода||Гидро\\пневмо испытания","I5:I5","Гидро\\пневмо испытания","АБК (пожаротушение хладогеновое)||Испытания трубопровода||Гидро\\пневмо испытания||компл","L5:L5","компл",null,null,null,null,null,null,null,null,null,null,null,null,null,"АБК (пожаротушение хладогеновое)Испытания трубопроводаГидро\\пневмо испытаниякомпл1","АБК (пожаротушение хладогеновое)","Испытания трубопровода","Гидро\\пневмо испытания","компл",null,1,0,{"$f":"AG5*AF5","v":0},241,"Заявка","Васечкин","2,90"]
[null,null,"АБК (пожаротушение хладогеновое)||Монтаж запорной арматуры","Ёмкость дождевых сточных вод","Монтаж запорной арматуры","E7:E11","АБК (пожаротушение хладогеновое)||Монтаж запорной арматуры||Заглушка 22х15 АПЭ21","I6:I18","Заглушка 22х15 АПЭ21","АБК (пожаротушение хладогеновое)||Монтаж запорной арматуры||Заглушка 22х15 АПЭ21||шт","L6:L6","шт",null,null,null,null,null,null,null,null,null,null,null,null,null,"АБК (пожаротушение хладогеновое)Монтаж запорной арматурыЗаглушка 22х15 АПЭ21шт2","АБК (пожаротушение хладогеновое)","Монтаж запорной арматуры","Заглушка 22х15 АПЭ21","шт",null,2,0.75,{"$f":"AG6*AF6","v":1.5},179,"Проектные работы","Петров","2,100"]
[null,null,"Ёмкость дождевых сточных вод||Монтаж запорной арматуры",null,"Монтаж запорной арматуры",null,"АБК (пожаротушение хладогеновое)||Монтаж запорной арматуры||Заглушка 28х19 АПЭ21","I19:I21","Заглушка 28х19 АПЭ21","АБК (пожаротушение хладогеновое)||Монтаж запорной арматуры||Заглушка 28х19 АПЭ21||шт","L7:L7","шт",null,null,null,null,null,null,null,null,null,null,null,null,null,"АБК (пожаротушение хладогеновое)Монтаж запорной арматурыЗаглушка 28х19 АПЭ21шт1","АБК (пожаротушение хладогеновое)","Монтаж запорной арматуры","Заглушка 28х19 АПЭ21","шт",null,1,0.75,0.75,180,"Доп работы",null,"2,118"]
[null,null,"Ёмкость дождевых сточных вод||Монтаж оборудования",null,"Монтаж оборудования",null,"АБК (пожаротушение хладогеновое)||Монтаж запорной арматуры||Заглушка 32х24 АПЭ21","I22:I23","Заглушка 32х24 АПЭ21","АБК (пожаротушение хладогеновое)||Монтаж запорной арматуры||Заглушка 32х24 АПЭ21||шт","L8:L8","шт",null,null,null,null,null,null,null,null,null,null,null,null,null,"АБК (пожаротушение хладогеновое)Монтаж запорной арматурыЗаглушка 32х24 АПЭ21шт2","АБК (пожаротушение хладогеновое)","Монтаж запорной арматуры","Заглушка 32х24 АПЭ21","шт",null,2,0.75,1.5,181,null,null,"2,55"]
[null,null,"Ёмкость дождевых сточных вод||Монтаж ОиВ",null,"Монтаж ОиВ",null,"АБК (пожаротушение хладогеновое)||Монтаж запорной арматуры||Заглушка 38х31 АПЭ21","I24:I24","Заглушка 38х31 АПЭ21","АБК (пожаротушение хладогеновое)||Монтаж запорной арматуры||Заглушка 38х31 АПЭ21||шт","L9:L9","шт",null,null,null,null,null,null,null,null,null,null,null,null,null,"АБК (пожаротушение хладогеновое)Монтаж запорной арматурыЗаглушка 38х31 АПЭ21шт2","АБК (пожаротушение хладогеновое)","Монтаж запорной арматуры","Заглушка 38х31 АПЭ21","шт",null,2,0.75,1.5,182,null,null,"2,56"]
["время суток","День","Ёмкость дождевых сточных вод||Монтаж трубопровода",null,"Монтаж трубопровода",null,"АБК (пожаротушение хладогеновое)||Монтаж запорной арматуры||Заглушка 48х40 АПЭ21","I25:I28","Заглушка 48х40 АПЭ21","АБК (пожаротушение хладогеновое)||Монтаж запорной арматуры||Заглушка 48х40 АПЭ21||шт","L10:L10","шт",null,null,null,null,null,null,null,null,null,null,null,null,null,"АБК (пожаротушение хладогеновое)Монтаж запорной арматурыЗаглушка 48х40 АПЭ21шт3","АБК (пожаротушение хладогеновое)","Монтаж запорной арматуры","Заглушка 48х40 АПЭ21","шт",null,3,0.75,2.25,183,null,null,"2,103"]
[null,"Ночь","Ёмкость дождевых сточных вод||Сварка трубопровода",null,"Сварка трубопровода",null,"АБК (пожаротушение хладогеновое)||Монтаж запорной арматуры||Заглушка ВР испытательная К 1 1/4\"","I29:I31","Заглушка ВР испытательная К 1 1/4\"","АБК (пожаротушение хладогеновое)||Монтаж запорной арматуры||Заглушка ВР испытательная К 1 1/4\"||шт","L11:L11","шт",null,null,null,null,null,null,null,null,null,null,null,null,null,"АБК (пожаротушение хладогеновое)Монтаж запорной арматурыЗаглушка ВР испытательная К 1 1/4\"шт2","АБК (пожаротушение хладогеновое)","Монтаж запорной арматуры","Заглушка ВР испытательная К 1 1/4\"","шт",null,2,0.75,1.5,177,null,null,"2,111"]
[null,null,null,null,null,null,"АБК (пожаротушение хладогеновое)||Монтаж запорной арматуры||Заглушка ВР испытательная К 1\"",null,"Заглушка ВР испытательная К 1\"","АБК (пожаротушение хладогеновое)||Монтаж запорной арматуры||Заглушка ВР испытательная К 1\"||шт","L12:L12","шт",null,null,null,null,null,null,null,null,null,null,null,null,null,"АБК (пожаротушение хладогеновое)Монтаж запорной арматурыЗаглушка ВР испытательная К 1\"шт2","АБК (пожаротушение хладогеновое)","Монтаж запорной арматуры","Заглушка ВР испытательная К 1\"","шт",null,2,0.75,1.5,176,null,null,"2,108"]
[null,null,null,null,null,null,"АБК (пожаротушение хладогеновое)||Монтаж запорной арматуры||Заглушка ВР испытательная К 1/2\"",null,"Заглушка ВР испытательная К 1/2\"","АБК (пожаротушение хладогеновое)||Монтаж запорной арматуры||Заглушка ВР испытательная К 1/2\"||шт","L13:L13","шт",null,null,null,null,null,null,null,null,null,null,null,null,null,"АБК (пожаротушение хладогеновое)Монтаж запорной арматурыЗаглушка ВР испытательная К 1/2\"шт2","АБК (пожаротушение хладогеновое)","Монтаж запорной арматуры","Заглушка ВР испытательная К 1/2\"","шт",null,2,0.75,1.5,175,null,null,"2,53"]
[null,null,null,null,null,null,"АБК (пожаротушение хладогеновое)||Монтаж запорной арматуры||Заглушка НР испытательная NPT 2 1/2\"",null,"Заглушка НР испытательная NPT 2 1/2\"","АБК (пожаротушение хладогеновое)||Монтаж запорной арматуры||Заглушка НР испытательная NPT 2 1/2\"||шт","L14:L14","шт",null,null,null,null,null,null,null,null,null,null,null,null,null,"АБК (пожаротушение хладогеновое)Монтаж запорной арматурыЗаглушка НР испытательная NPT 2 1/2\"шт2","АБК (пожаротушение хладогеновое)","Монтаж запорной арматуры","Заглушка НР испытательная NPT 2 1/2\"","шт",null,2,0.75,1.5,178,null,null,"2,8"]
[null,null,null,null,null,null,"АБК (пожаротушение хладогеновое)||Монтаж запорной арматуры||Насадок, алюминий 180°,суммарная площадь отверстий 52,83 мм2, 7 отв. ф 3,1 мм",null,"Насадок, алюминий 180°,суммарная площадь отверстий 52,83 мм2, 7 отв. ф 3,1 мм","АБК (пожаротушение хладогеновое)||Монтаж запорной арматуры||Насадок, алюминий 180°,суммарная площадь отверстий 52,83 мм2, 7 отв. ф 3,1 мм||шт","L15:L15","шт",null,null,null,null,null,null,null,null,null,null,null,null,null,"АБК (пожаротушение хладогеновое)Монтаж запорной арматурыНасадок, алюминий 180°,суммарная площадь отверстий 52,83 мм2, 7 отв. ф 3,1 ммшт2","АБК (пожаротушение хладогеновое)","Монтаж запорной арматуры","Насадок, алюминий 180°,суммарная площадь отверстий 52,83 мм2, 7 отв. ф 3,1 мм","шт",null,2,0.63,1.26,169,null,null,"2,54"]
[null,null,null,null,null,null,"АБК (пожаротушение хладогеновое)||Монтаж запорной арматуры||Насадок, алюминий 360°, суммарная площадь отверстий 452,39 мм2, 16 отв. ф 6,0 мм",null,"Насадок, алюминий 360°, суммарная площадь отверстий 452,39 мм2, 16 отв. ф 6,0 мм","АБК (пожаротушение хладогеновое)||Монтаж запорной арматуры||Насадок, алюминий 360°, суммарная площадь отверстий 452,39 мм2, 16 отв. ф 6,0 мм||шт","L16:L16","шт",null,null,null,null,null,null,null,null,null,null,null,null,null,"АБК (пожаротушение хладогеновое)Монтаж запорной арматурыНасадок, алюминий 360°, суммарная площадь отверстий 452,39 мм2, 16 отв. ф 6,0 ммшт2","АБК (пожаротушение хладогеновое)","Монтаж запорной арматуры","Насадок, алюминий 360°, суммарная площадь отверстий 452,39 мм2, 16 отв. ф 6,0 мм","шт",null,2,0.63,1.26,171,null,null,"2,19"]
[null,null,null,null,null,null,"АБК (пожаротушение хладогеновое)||Монтаж запорной арматуры||Насадок, алюминий 360°,суммарная площадь отверстий 201,06 мм2, 16 отв. Ф 4,0 мм",null,"Насадок, алюминий 360°,суммарная площадь отверстий 201,06 мм2, 16 отв. Ф 4,0 мм","АБК (пожаротушение хладогеновое)||Монтаж запорной арматуры||Насадок, алюминий 360°,суммарная площадь отверстий 201,06 мм2, 16 отв. Ф 4,0 мм||шт","L17:L17","шт",null,null,null,null,null,null,null,null,null,null,null,null,null,"АБК (пожаротушение хладогеновое)Монтаж запорной арматурыНасадок, алюминий 360°,суммарная площадь отверстий 201,06 мм2, 16 отв. Ф 4,0 ммшт2","АБК (пожаротушение хладогеновое)","Монтаж запорной арматуры","Насадок, алюминий 360°,суммарная площадь отверстий 201,06 мм2, 16 отв. Ф 4,0 мм","шт",null,2,0.63,1.26,170,null,null,"2,36"]
[null,null,null,null,null,null,"АБК (пожаротушение хладогеновое)||Монтаж запорной арматуры||Ниппель под насадок NVC R 1 1/4\"",null,"Ниппель под насадок NVC R 1 1/4\"","АБК (пожаротушение хладогеновое)||Монтаж запорной арматуры||Ниппель под насадок NVC R 1 1/4\"||шт","L18:L18","шт",null,null,null,null,null,null,null,null,null,null,null,null,null,"АБК (пожаротушение хладогеновое)Монтаж запорной арматурыНиппель под насадок NVC R 1 1/4\"шт2","АБК (пожаротушение хладогеновое)","Монтаж запорной арматуры","Ниппель под насадок NVC R 1 1/4\"","шт",null,2,0.63,1.26,174,null,null,"2,40"]
[null,null,null,null,null,null,"Ёмкость дождевых сточных вод||Монтаж запорной арматуры||Задвижка стальная клиновая с выдвижным шпинделем dy150, Py=1,6МПа, исп. ХЛ, фланцевая, класс герметичности \"А\", с ответн",null,"Задвижка стальная клиновая с выдвижным шпинделем dy150, Py=1,6МПа, исп. ХЛ, фланцевая, класс герметичности \"А\", с ответн","Ёмкость дождевых сточных вод||Монтаж запорной арматуры||Задвижка стальная клиновая с выдвижным шпинделем dy150, Py=1,6МПа, исп. ХЛ, фланцевая, класс герметичности \"А\", с ответн||шт","L19:L19","шт",null,null,null,null,null,null,null,null,null,null,null,null,null,"Ёмкость дождевых сточных водМонтаж запорной арматурыЗадвижка стальная клиновая с выдвижным шпинделем dy150, Py=1,6МПа, исп. ХЛ, фланцевая, класс герметичности \"А\", с ответншт2","Ёмкость дождевых сточных вод","Монтаж запорной арматуры","Задвижка стальная клиновая с выдвижным шпинделем dy150, Py=1,6МПа, исп. ХЛ, фланцевая, класс герметичности \"А\", с ответн","шт",null,2,6.54,13.08,220,null,null,"2,14"]
[null,null,null,null,null,null,"Ёмкость дождевых сточных вод||Монтаж запорной арматуры||Задвижка стальная клиновая с выдвижным шпинделем dy50, Py=1,6 МПа, исп. ХЛ, фланцевая, класс герметичности \"А\", с ответн",null,"Задвижка стальная клиновая с выдвижным шпинделем dy50, Py=1,6 МПа, исп. ХЛ, фланцевая, класс герметичности \"А\", с ответн","Ёмкость дождевых сточных вод||Монтаж запорной арматуры||Задвижка стальная клиновая с выдвижным шпинделем dy50, Py=1,6 МПа, исп. ХЛ, фланцевая, класс герметичности \"А\", с ответн||шт","L20:L20","шт",null,null,null,null,null,null,null,null,null,null,null,null,null,"Ёмкость дождевых сточных водМонтаж запорной арматурыЗадвижка стальная клиновая с выдвижным шпинделем dy50, Py=1,6 МПа, исп. ХЛ, фланцевая, класс герметичности \"А\", с ответншт2","Ёмкость дождевых сточных вод","Монтаж запорной арматуры","Задвижка стальная клиновая с выдвижным шпинделем dy50, Py=1,6 МПа, исп. ХЛ, фланцевая, класс герметичности \"А\", с ответн","шт",null,2,2.09,4.18,219,null,null,"2,98"]
[null,null,null,null,null,null,"Ёмкость дождевых сточных вод||Монтаж запорной арматуры||Затвор обратный dy150, Py=4,0МПа",null,"Затвор обратный dy150, Py=4,0МПа","Ёмкость дождевых сточных вод||Монтаж запорной арматуры||Затвор обратный dy150, Py=4,0МПа||шт","L21:L21","шт",null,null,null,null,null,null,null,null,null,null,null,null,null,"Ёмкость дождевых сточных водМонтаж запорной арматурыЗатвор обратный dy150, Py=4,0МПашт2","Ёмкость дождевых сточных вод","Монтаж запорной арматуры","Затвор обратный dy150, Py=4,0МПа","шт",null,2,6.54,13.08,221,null,null,"2,32"]
[null,null,null,null,null,null,"Ёмкость дождевых сточных вод||Монтаж оборудования||Агрегат погружной электронасосный Q=25 л/с, Н=40 м исполнение Ex.D с встроенным электродвигателем N=27кВт, U=3х415 В, n=",null,"Агрегат погружной электронасосный Q=25 л/с, Н=40 м исполнение Ex.D с встроенным электродвигателем N=27кВт, U=3х415 В, n=","Ёмкость дождевых сточных вод||Монтаж оборудования||Агрегат погружной электронасосный Q=25 л/с, Н=40 м исполнение Ex.D с встроенным электродвигателем N=27кВт, U=3х415 В, n=||компл","L22:L22","компл",null,null,null,null,null,null,null,null,null,null,null,null,null,"Ёмкость дождевых сточных водМонтаж оборудованияАгрегат погружной электронасосный Q=25 л/с, Н=40 м исполнение Ex.D с встроенным электродвигателем N=27кВт, U=3х415 В, n=компл2","Ёмкость дождевых сточных вод","Монтаж оборудования","Агрегат погружной электронасосный Q=25 л/с, Н=40 м исполнение Ex.D с встроенным электродвигателем N=27кВт, U=3х415 В, n=","компл",null,2,23,46,223,null,null,"2,112"]
[null,null,null,null,null,null,"Ёмкость дождевых сточных вод||Монтаж оборудования||Таль ручная передвижная ТРШБМ г/п 1,0 т (88 кг)",null,"Таль ручная передвижная ТРШБМ г/п 1,0 т (88 кг)","Ёмкость дождевых сточных вод||Монтаж оборудования||Таль ручная передвижная ТРШБМ г/п 1,0 т (88 кг)||шт","L23:L23","шт",null,null,null,null,null,null,null,null,null,null,null,null,null,"Ёмкость дождевых сточных водМонтаж оборудованияТаль ручная передвижная ТРШБМ г/п 1,0 т (88 кг)шт1","Ёмкость дождевых сточных вод","Монтаж оборудования","Таль ручная передвижная ТРШБМ г/п 1,0 т (88 кг)","шт",null,1,8,8,222,null,null,"2,64"]
[null,null,null,null,null,null,"Ёмкость дождевых сточных вод||Монтаж ОиВ||Зонт Ду=100 мм на ниппельном соединении",null,"Зонт Ду=100 мм на ниппельном соединении","Ёмкость дождевых сточных вод||Монтаж ОиВ||Зонт Ду=100 мм на ниппельном соединении||шт","L24:L24","шт",null,null,null,null,null,null,null,null,null,null,null,null,null,"Ёмкость дождевых сточных водМонтаж ОиВЗонт Ду=100 мм на ниппельном соединениишт2","Ёмкость дождевых сточных вод","Монтаж ОиВ","Зонт Ду=100 мм на ниппельном соединении","шт",null,2,0.3,0.6,224,null,null,"2,97"]
[null,null,null,null,null,null,"Ёмкость дождевых сточных вод||Монтаж трубопровода||Труба Ø108х4 09Г2С (венттруба для штуцера N6)",null,"Труба Ø108х4 09Г2С (венттруба для штуцера N6)","Ёмкость дождевых сточных вод||Монтаж трубопровода||Труба Ø108х4 09Г2С (венттруба для штуцера N6)||мп","L25:L25","мп",null,null,null,null,null,null,null,null,null,null,null,null,null,"Ёмкость дождевых сточных водМонтаж трубопроводаТруба Ø108х4 09Г2С (венттруба для штуцера N6)мп15","Ёмкость дождевых сточных вод","Монтаж трубопровода","Труба Ø108х4 09Г2С (венттруба для штуцера N6)","мп",null,15,0.38,5.7,229,null,null,"2,65"]
[null,null,null,null,null,null,"Ёмкость дождевых сточных вод||Монтаж трубопровода||Труба Ø159х5 09Г2С (выход продукта (N5)",null,"Труба Ø159х5 09Г2С (выход продукта (N5)","Ёмкость дождевых сточных вод||Монтаж трубопровода||Труба Ø159х5 09Г2С (выход продукта (N5)||мп","L26:L26","мп",null,null,null,null,null,null,null,null,null,null,null,null,null,"Ёмкость дождевых сточных водМонтаж трубопроводаТруба Ø159х5 09Г2С (выход продукта (N5)мп20","Ёмкость дождевых сточных вод","Монтаж трубопровода","Труба Ø159х5 09Г2С (выход продукта (N5)","мп",null,20,0.49,9.8000000000000007,231,null,null,"2,21"]
[null,null,null,null,null,null,"Ёмкость дождевых сточных вод||Монтаж трубопровода||Труба Ø159х5 09Г2С (для штуцеров N7)",null,"Труба Ø159х5 09Г2С (для штуцеров N7)","Ёмкость дождевых сточных вод||Монтаж трубопровода||Труба Ø159х5 09Г2С (для штуцеров N7)||мп","L27:L27","мп",null,null,null,null,null,null,null,null,null,null,null,null,null,"Ёмкость дождевых сточных водМонтаж трубопроводаТруба Ø159х5 09Г2С (для штуцеров N7)мп5","Ёмкость дождевых сточных вод","Монтаж трубопровода","Труба Ø159х5 09Г2С (для штуцеров N7)","мп",null,5,0.49,2.4500000000000002,228,null,null,"2,50"]
[null,null,null,null,null,null,"Ёмкость дождевых сточных вод||Монтаж трубопровода||Труба Ø57х4 09Г2С (установка термообразователя+тр-д для взмучивания осадка (N9), (N10))",null,"Труба Ø57х4 09Г2С (установка термообразователя+тр-д для взмучивания осадка (N9), (N10))","Ёмкость дождевых сточных вод||Монтаж трубопровода||Труба Ø57х4 09Г2С (установка термообразователя+тр-д для взмучивания осадка (N9), (N10))||мп","L28:L28","мп",null,null,null,null,null,null,null,null,null,null,null,null,null,"Ёмкость дождевых сточных водМонтаж трубопроводаТруба Ø57х4 09Г2С (установка термообразователя+тр-д для взмучивания осадка (N9), (N10))мп20","Ёмкость дождевых сточных вод","Монтаж трубопровода","Труба Ø57х4 09Г2С (установка термообразователя+тр-д для взмучивания осадка (N9), (N10))","мп",null,20,0.33,6.6000000000000005,230,null,null,"2,109"]
[null,null,null,null,null,null,"Ёмкость дождевых сточных вод||Сварка трубопровода||Трубопровод 108x4",null,"Трубопровод 108x4","Ёмкость дождевых сточных вод||Сварка трубопровода||Трубопровод 108x4||стык","L29:L29","стык",null,null,null,null,null,null,null,null,null,null,null,null,null,"Ёмкость дождевых сточных водСварка трубопроводаТрубопровод 108x4стык4","Ёмкость дождевых сточных вод","Сварка трубопровода","Трубопровод 108x4","стык",null,4,2.21,8.84,225,null,null,"2,66"]
[null,null,null,null,null,null,"Ёмкость дождевых сточных вод||Сварка трубопровода||Трубопровод 159x6",null,"Трубопровод 159x6","Ёмкость дождевых сточных вод||Сварка трубопровода||Трубопровод 159x6||стык","L30:L30","стык",null,null,null,null,null,null,null,null,null,null,null,null,null,"Ёмкость дождевых сточных водСварка трубопроводаТрубопровод 159x6стык28","Ёмкость дождевых сточных вод","Сварка трубопровода","Трубопровод 159x6","стык",null,28,2.96,82.88,227,null,null,"2,10"]
[null,null,null,null,null,null,"Ёмкость дождевых сточных вод||Сварка трубопровода||Трубопровод 57x3,5",null,"Трубопровод 57x3,5","Ёмкость дождевых сточных вод||Сварка трубопровода||Трубопровод 57x3,5||стык","L31:L31","стык",null,null,null,null,null,null,null,null,null,null,null,null,null,"Ёмкость дождевых сточных водСварка трубопроводаТрубопровод 57x3,5стык5","Ёмкость дождевых сточных вод","Сварка трубопровода","Трубопровод 57x3,5","стык",null,5,1.43,7.1499999999999995,226,null,null,"2,104"]